bitfinex-derivatives/quotes_ETHF0:USTF0_20250602
["timestamp","ask_amount","ask_price","bid_price","bid_amount"]
[1748823561282,21.4938,2538.3,2538.2,0.78758]
[1748823561689,22.28135,2538.3,2538.2,0.78758]
[1748823562294,21.4938,2538.3,2537.9,1.2528]
[1748823562495,0.78774,2537.7,2537.6,4.79475]
[1748823562992,0.78774,2537.7,2537.5,5.884]
[1748823563192,2.0077,2537.9,2537.8,0.78771]
[1748823563491,21.09238,2537.9,2537.8,0.78771]
[1748823564392,0.78772,2537.8,2537.7,0.78772]
[1748823564594,2.16822,2537.8,2537.7,0.78772]
[1748823564890,1.3805,2537.8,2537.7,0.78772]
[1748823565291,2.16821,2537.8,2537.7,0.78772]
[1748823565799,2.16823,2537.8,2537.7,0.78774]
[1748823566596,0.78775,2537.7,2537.6,0.78776]
[1748823566994,1.3805,2537.8,2537.7,0.78774]
[1748823567399,2.16821,2537.8,2537.7,0.78774]
[1748823567690,0.78776,2537.7,2537.6,0.78776]
[1748823567897,1.3805,2537.8,2537.7,0.78774]
[1748823568098,18.9242,2537.9,2537.8,0.78771]
[1748823569298,20.82680265,2537.9,2537.8,0.78771]
[1748823570195,24.03460265,2537.9,2537.8,0.78771]
[1748823570395,22.132,2537.9,2537.8,0.78771]
[1748823570695,23.24664281,2537.9,2537.8,0.78771]
[1748823571099,24.03431281,2537.9,2537.8,0.78771]
[1748823571596,20.82651281,2537.9,2537.8,0.78771]
[1748823571796,24.03431281,2537.9,2537.8,0.78771]
[1748823572097,23.24664281,2537.9,2537.4,5.884]
[1748823572298,0.78782,2537.5,2537.4,0.78781]
[1748823573307,0.78783,2537.4,2537.3,4.79484]
[1748823573509,2.07173,2537.4,2537.3,4.79483]
[1748823573897,1.2839,2537.4,2537.3,4.79483]
[1748823574203,2.07173,2537.4,2537.3,4.79483]
[1748823574406,0.78788,2537.3,2537.1,40.80591145]
[1748823574605,2.07178,2537.3,2537.2,0.78787]
[1748823574807,3.2078,2537.6,2537.5,0.7878]
[1748823575000,5.6997987,2537.6,2537.5,0.7878]
[1748823575195,6.4875687,2537.6,2537.5,0.7878]
[1748823575404,6.4875887,2537.6,2537.5,0.7878]
[1748823576209,5.6997987,2537.6,2537.5,0.7878]
[1748823576403,1.1148987,2537.6,2537.5,0.7878]
[1748823576797,1.45255,2537.7,2537.6,0.78777]
[1748823577003,2.56784313,2537.7,2537.6,0.78777]
[1748823577408,2.76484313,2537.7,2537.6,0.78777]
[1748823577911,0.78778,2537.6,2537.5,0.78778]
[1748823578106,2.08968,2537.6,2537.5,0.78778]
[1748823578609,1.3019,2537.6,2537.5,0.78778]
[1748823579604,2.08967,2537.6,2537.5,0.78778]
[1748823579803,1.3019,2537.6,2537.5,0.78778]
[1748823581109,1.3019,2537.6,2537.1,3.2078]
[1748823581307,5.68440116,2537.2,2534.5,15.6608581]
[1748823581513,3.2078,2535.6,2534.9,1.3384]
[1748823581708,3.2078,2535.0,2534.9,1.3384]
[1748823582005,4.32289271,2535.0,2534.9,1.3384]
[1748823582412,3.2078,2535.0,2534.9,1.3384]
[1748823582611,3.2078,2535.0,2534.7,0.00591145]
[1748823582806,0.78864,2534.8,2534.7,0.00591145]
[1748823583805,2.09112655,2534.8,2534.7,0.00591145]
[1748823584011,3.38052655,2534.8,2534.7,0.00591145]
[1748823584212,9.56349655,2534.8,2533.7,0.6601]
[1748823584416,0.78898,2533.7,2533.6,40.8]
[1748823584611,3.99676,2533.8,2533.6,40.8]
[1748823584916,3.2078,2533.8,2533.6,40.8]
[1748823585617,3.2078,2533.8,2533.7,1.2758]
[1748823586715,3.2078,2533.8,2533.6,40.8]
[1748823587316,3.2078,2533.8,2533.4,0.00591145]
[1748823587512,3.2078,2533.5,2533.4,2.12916145]
[1748823587717,3.2078,2533.5,2533.4,42.92916145]
[1748823588211,3.2078,2533.5,2533.4,47.92916145]
[1748823589416,3.2078,2533.5,2533.4,47.99985934]
[1748823589817,3.2078,2533.5,2533.4,42.99985934]
[1748823590016,3.2078,2533.5,2533.4,42.99987934]
[1748823590415,3.2078,2533.5,2532.9,0.78922]
[1748823590612,3.2078,2533.0,2532.2,1.3824]
[1748823590817,3.2078,2532.3,2532.2,1.3824]
[1748823591031,8.99120116,2532.3,2531.4,3.2078]
[1748823591320,1.2957,2532.9,2530.5,40.8]
[1748823591321,3.2078,2531.5,2530.5,40.8]
[1748823591511,3.2078,2530.7,2530.6,0.86898264]
[1748823591712,3.2078,2531.0,2530.9,0.78985]
[1748823591911,3.2078,2532.2,2532.0,0.7895]
[1748823592219,3.2078,2532.2,2531.4,4.519]
[1748823592517,3.2078,2532.2,2531.5,5.9034]
[1748823592718,3.2078,2532.8,2531.7,1.97402]
[1748823592925,0.00592359,2532.4,2531.9,3.2078]
[1748823593121,3.59e-06,2532.4,2532.3,0.78942]
[1748823593523,3.20780359,2532.4,2532.3,0.78942]
[1748823593722,3.59e-06,2532.4,2532.3,0.78942]
[1748823594426,3.59e-06,2532.4,2532.3,5.78942]
[1748823594727,3.59e-06,2532.4,2532.3,10.31042]
[1748823595430,3.59e-06,2532.4,2532.3,11.65042]
[1748823595918,3.59e-06,2532.4,2532.3,12.32662]
[1748823596423,3.2078,2533.9,2533.8,0.78895]
[1748823596626,3.2078,2533.9,2533.7,0.78896]
[1748823596824,3.2078,2533.9,2533.5,4.522]
[1748823596825,3.2078,2533.9,2533.8,2.12075]
[1748823598627,3.2078,2533.9,2533.8,1.3318]
[1748823599527,3.99674,2533.9,2533.6,40.80592359]
[1748823599726,2.08835,2533.8,2533.6,40.80592359]
[1748823599929,0.78898,2533.7,2533.6,0.00592359]
[1748823600126,2.08838,2533.7,2533.6,0.00592359]
[1748823600318,3.2078,2533.9,2533.6,0.00592359]
[1748823600936,0.78895,2533.8,2533.6,0.00592359]
[1748823601230,0.78898,2533.7,2533.6,0.00592359]
[1748823601430,0.78904,2533.5,2533.4,0.07069789]
[1748823601623,3.2078,2533.5,2533.4,0.07069789]
[1748823601822,3.2078,2533.5,2533.4,0.85976789]
[1748823602520,3.99684,2533.5,2533.4,1.42389789]
[1748823602723,3.2078,2533.5,2533.4,2.21296789]
[1748823603342,3.2078,2533.5,2533.4,1.42389789]
[1748823603829,3.2078,2533.5,2533.4,2.21296789]
[1748823604529,3.99684,2533.5,2533.4,0.07069789]
[1748823605329,10.48037466,2533.5,2533.4,0.07069789]
[1748823606230,4.69133466,2533.5,2533.4,0.07069789]
[1748823606534,3.4051,2533.5,2533.4,0.85976789]
[1748823606931,0.1973,2533.5,2533.4,0.85976789]
[1748823607129,0.1973,2533.5,2533.4,5.38276789]
[1748823607631,0.1973,2533.5,2533.4,0.07069789]
[1748823607822,0.00592359,2534.1,2534.0,0.78889]
[1748823608025,2.3492766,2534.3,2534.0,9.523]
[1748823608226,2.3492766,2534.4,2534.3,0.78879]
[1748823608427,4.5115223,2535.0,2534.8,0.78861]
[1748823608626,5.3001023,2535.0,2534.4,1.3843]
[1748823608825,0.78862,2534.9,2534.4,1.3843]
[1748823609034,0.00592359,2534.9,2534.7,0.78866]
[1748823609331,0.78868,2534.7,2534.5,3.99653]
[1748823609533,0.78868,2534.7,2534.4,1.39022359]
[1748823609534,0.78869,2534.7,2534.4,0.79466359]
[1748823609728,0.7887,2534.6,2534.4,2.17896359]
[1748823610530,0.78873,2534.5,2534.4,1.39022359]
[1748823610734,0.78871,2534.6,2534.4,2.17898359]
[1748823610935,3.8766766,2534.7,2534.4,2.17898359]
[1748823610936,4.6653666,2534.7,2534.4,2.17898359]
[1748823611231,3.99653,2534.5,2534.4,0.00592359]
[1748823611637,6.60218252,2534.5,2534.4,0.00592359]
[1748823611936,1.04510592,2534.5,2534.4,0.00592359]
[1748823612532,4.17271118,2534.5,2534.4,0.00592359]
[1748823612734,3.38398118,2534.5,2534.4,0.00592359]
[1748823612939,0.25637592,2534.5,2534.4,0.79468359]
[1748823613141,22.68080526,2534.7,2534.5,0.78873]
[1748823613437,3.32480526,2534.7,2534.6,1.2864]
[1748823613732,0.1972,2534.7,2534.6,2.0751]
[1748823613939,3.31602505,2534.7,2534.6,1.2864]
[1748823614238,0.78872,2534.6,2534.4,0.79468359]
[1748823614438,2.32959542,2534.5,2534.4,1.26992359]
[1748823614842,3.11832542,2534.5,2534.4,1.26992359]
[1748823615239,0.78873,2534.5,2534.4,1.26992359]
[1748823615541,3.11832542,2534.5,2534.4,1.26992359]
[1748823616341,3.99653,2534.5,2534.4,0.00592359]
[1748823616540,4.25308299,2534.5,2534.4,0.00592359]
[1748823616741,5.55458771,2534.5,2534.4,0.00592359]
[1748823617042,5.55458771,2534.5,2533.5,0.6542]
[1748823617043,9.76577558,2534.5,2533.4,7.80049789]
[1748823617348,0.78896,2533.8,2533.6,0.78899]
[1748823617537,0.78896,2533.8,2533.7,42.1351]
[1748823618143,22.47763665,2533.9,2533.7,42.92407]
[1748823618350,20.14893,2533.9,2533.8,1.3351]
[1748823618843,0.78895,2533.8,2533.7,40.8]
[1748823619043,26.21660665,2533.9,2533.5,1.34102359]
[1748823619247,1.3201,2533.8,2533.5,1.34102359]
[1748823619445,0.78901,2533.6,2533.5,42.14102359]
[1748823620249,2.07087699,2533.6,2533.5,40.80592359]
[1748823620546,2.07088042,2533.6,2533.5,40.80592359]
[1748823621141,4.39958707,2533.6,2533.5,0.00592359]
[1748823621337,2.07088042,2533.6,2533.5,0.00592359]
[1748823621536,2.32792781,2533.6,2533.5,0.00592359]
[1748823621941,2.07088042,2533.6,2533.5,0.00592359]
[1748823622140,2.32796856,2533.6,2533.5,0.00592359]
[1748823622341,2.07088042,2533.6,2533.5,0.00592359]
[1748823622541,3.70315251,2533.6,2533.5,0.00592359]
[1748823622740,3.44608042,2533.6,2533.5,0.00592359]
[1748823622949,3.70315306,2533.6,2533.5,0.00592359]
[1748823623149,3.44608042,2533.6,2533.5,0.00592359]
[1748823623343,3.70334236,2533.6,2533.5,0.00592359]
[1748823623537,6.80568152,2533.6,2533.5,0.00592359]
[1748823624161,6.54841958,2533.6,2533.5,0.00592359]
[1748823624450,6.80548046,2533.6,2533.5,0.00592359]
[1748823624641,24.7122782,2533.6,2533.5,0.00592359]
[1748823624843,24.71307378,2533.6,2533.5,0.00592359]
[1748823625047,26.03728394,2533.6,2533.5,0.00592359]
[1748823625554,4.64217394,2533.6,2533.5,0.00592359]
[1748823625753,4.64217394,2533.6,2533.5,0.79496359]
[1748823626051,3.61858029,2533.6,2533.5,0.79496359]
[1748823626246,1.28004172,2533.6,2533.5,0.79496359]
[1748823626444,1.28004172,2533.6,2533.5,41.59496359]
[1748823626752,2.06905172,2533.6,2533.5,40.80592359]
[1748823626952,4.40759029,2533.6,2533.5,40.80592359]
[1748823627248,2.06905172,2533.6,2533.5,40.80592359]
[1748823627651,2.32644898,2533.6,2533.5,40.80592359]
[1748823627850,2.06905172,2533.6,2533.5,40.80592359]
[1748823628149,2.32645868,2533.6,2533.5,40.80592359]
[1748823628348,2.32640192,2533.6,2533.5,40.80592359]
[1748823628553,2.06905172,2533.6,2533.5,40.80592359]
[1748823628752,2.32642101,2533.6,2533.5,40.80592359]
[1748823628955,2.32642101,2533.6,2533.5,42.08272359]
[1748823629148,1.04637929,2533.6,2533.5,42.08272359]
[1748823629448,2.32520393,2533.6,2533.5,42.08272359]
[1748823629854,2.06783464,2533.6,2533.5,42.08272359]
[1748823630149,4.40588823,2533.6,2533.5,1.28272359]
[1748823630343,2.06783464,2533.6,2533.5,1.28272359]
[1748823630542,4.66381621,2533.6,2533.5,1.28272359]
[1748823630747,4.66386754,2533.6,2533.5,1.28272359]
[1748823631644,0.78926,2532.8,2532.7,0.6769]
[1748823631848,0.78926,2532.8,2532.5,5.1278]
[1748823631849,0.78932,2532.6,2532.5,1.2749]
[1748823632051,0.78939,2532.4,2532.3,40.8]
[1748823632258,0.78948,2532.1,2532.0,1.2749]
[1748823632443,3.2078,2532.4,2532.0,1.2749]
[1748823632648,3.2078,2532.4,2532.2,0.78945]
[1748823632649,0.25761394,2532.3,2532.2,0.78945]
[1748823632850,3.12696793,2532.4,2532.2,2.09414]
[1748823633055,2.33756793,2532.4,2532.3,0.78942]
[1748823633250,20.50812741,2532.4,2532.3,2.09412]
[1748823633557,2.06851741,2532.4,2532.3,1.3047]
[1748823633750,0.78939,2532.4,2532.3,1.3047]
[1748823634249,5.27621919,2532.4,2532.3,1.3047]
[1748823634654,0.78945,2532.2,2532.1,40.8]
[1748823634851,0.78948,2532.1,2532.0,1.3047]
[1748823635055,0.78951,2532.0,2531.9,0.00592359]
[1748823635255,21.28453919,2532.0,2531.9,0.00592359]
[1748823635851,1.27902919,2532.0,2531.9,0.00592359]
[1748823636050,28.69582919,2532.0,2531.2,3.2078]
[1748823636256,3.2078,2531.3,2530.3,3.2078]
[1748823636455,1.3016,2531.2,2530.6,3.2078]
[1748823636755,19.282,2531.4,2530.7,1.35912951]
[1748823636960,2.06508081,2531.3,2530.9,3.2078]
[1748823637157,0.78978,2531.2,2531.0,1.2801]
[1748823637556,0.78985,2530.9,2530.8,0.08494998]
[1748823637851,4.5094,2531.1,2530.8,0.08494998]
[1748823638055,4.5094,2531.1,2530.9,1.2801]
[1748823638056,1.27352297,2531.0,2530.9,1.2801]
[1748823638252,4.617,2531.0,2530.8,0.08494998]
[1748823638559,22.69172359,2531.4,2530.8,0.08494998]
[1748823638758,1.27175035,2531.3,2530.9,1.3067]
[1748823638962,0.00592359,2531.4,2531.1,3.2078]
[1748823639157,0.00592359,2531.4,2531.2,1.3067]
[1748823639462,5.79563359,2531.4,2530.8,0.75474998]
[1748823639663,3.2078,2531.1,2530.8,1.39164998]
[1748823640261,1.3537,2531.0,2530.8,1.39164998]
[1748823640466,1.3537,2531.0,2530.8,0.08494998]
[1748823640850,2.14354,2531.0,2530.8,0.08494998]
[1748823641052,10.9717,2531.0,2529.6,7.8258]
[1748823641256,3.8734,2530.9,2529.9,3.2078]
[1748823641462,5.274,2531.1,2530.2,3.2078]
[1748823641659,0.656,2531.1,2530.8,0.78987]
[1748823641851,0.656,2531.1,2531.0,0.78982]
[1748823642058,19.516,2531.1,2530.9,2.09553]
[1748823642255,19.516,2531.1,2530.9,1.3057]
[1748823643163,20.8542,2531.1,2530.9,0.01098203]
[1748823643858,19.516,2531.1,2531.0,0.78982]
[1748823644161,3.2078,2531.2,2531.1,0.78979]
[1748823644758,0.00592359,2531.3,2531.2,0.78976]
[1748823646158,3.59e-06,2531.3,2531.2,0.78976]
[1748823646363,0.19750359,2531.3,2531.2,41.58976]
[1748823646664,0.19750359,2531.3,2531.2,48.57366]
[1748823646867,0.78948,2532.1,2531.3,1.97433]
[1748823646868,3.2078,2532.0,2531.3,1.97433]
[1748823647162,3.2078,2532.0,2531.9,0.78954]
[1748823647660,5.256,2532.3,2532.2,0.78945]
[1748823647865,5.256,2532.3,2532.1,0.78947]
[1748823648166,0.78949,2532.1,2531.7,1.3223]
[1748823648464,3.2078,2531.8,2531.5,4.619]
[1748823648664,0.1974,2531.7,2531.4,1.3768]
[1748823648961,0.1974,2531.7,2531.6,0.78963]
[1748823649759,3.2078,2532.4,2532.3,0.78942]
[1748823649965,3.2078,2532.4,2532.2,0.78943]
[1748823650156,24.014,2532.4,2532.3,0.78942]
[1748823650561,24.09297646,2532.4,2532.1,0.00592359]
[1748823650763,0.07897958,2532.3,2532.2,0.78945]
[1748823651365,0.07897958,2532.3,2532.2,2.13525]
[1748823652159,0.07897958,2532.3,2532.2,0.78945]
[1748823652359,0.78945,2532.2,2532.1,0.00592359]
[1748823652860,7.10465,2532.2,2532.1,0.00592359]
[1748823653159,7.76475,2532.2,2532.1,0.00592359]
[1748823653467,2.76475,2532.2,2532.1,0.00592359]
[1748823653763,13.73569477,2532.2,2532.1,0.00592359]
[1748823654062,28.17569477,2532.2,2532.1,0.00592359]
[1748823654264,33.17569477,2532.2,2532.1,0.00592359]
[1748823654867,33.17616866,2532.2,2532.1,0.00592359]
[1748823656465,28.17759882,2532.2,2532.1,0.00592359]
[1748823657666,1.93794882,2532.2,2532.1,0.79540359]
[1748823657867,22.11739882,2532.2,2532.1,0.00592359]
[1748823658268,23.43809882,2532.2,2532.1,0.00592359]
[1748823658864,0.78957,2531.8,2531.7,0.07069789]
[1748823659066,8.69237,2531.8,2531.7,0.07069789]
[1748823659468,9.97283472,2531.8,2531.7,0.07069789]
[1748823659670,15.50396472,2531.8,2531.0,0.7898]
[1748823659871,0.78977,2531.2,2531.0,0.78982]
[1748823660071,0.78977,2531.2,2531.1,0.00394353]
[1748823660269,21.4511332,2531.2,2531.1,0.00394353]
[1748823660469,27.8339332,2531.2,2531.1,0.00394353]
[1748823660666,28.4621332,2531.2,2531.1,1e-08]
[1748823661471,0.78996,2530.6,2530.1,3.2078]
[1748823661670,20.67724176,2530.5,2530.2,2.15095]
[1748823661967,1.28224176,2530.5,2530.4,0.79001]
[1748823662173,1.28224176,2530.5,2530.4,3.99781]
[1748823662464,1.28224176,2530.5,2530.4,3.8644]
[1748823662668,9.49004176,2530.5,2529.0,6.67206]
[1748823662870,3.2078,2529.9,2529.5,1.3609]
[1748823663064,19.403,2529.9,2529.5,1.3609]
[1748823663263,19.409,2530.0,2529.5,1.3609]
[1748823663461,19.409,2530.0,2529.9,0.79016]
[1748823663770,19.409,2530.0,2529.8,0.79018]
[1748823663771,20.69276437,2530.0,2529.8,0.79018]
[1748823664068,20.69276437,2530.0,2529.9,2.04996]
[1748823664365,23.90056437,2530.0,2529.9,0.79016]
[1748823664565,1.28076437,2530.0,2529.9,0.79016]
[1748823665171,2.33202451,2530.3,2530.2,0.79007]
[1748823665569,0.24982451,2530.3,2530.2,5.79007]
[1748823665867,0.00592359,2530.7,2530.6,0.78995]
[1748823666073,3.2078,2531.3,2531.2,0.78976]
[1748823666366,3.2078,2531.3,2530.8,40.8]
[1748823666673,3.99754,2531.3,2530.8,40.8]
[1748823666874,21.63764,2531.3,2531.0,0.7898]
[1748823667067,3.2078,2531.6,2530.9,0.00592359]
[1748823667268,0.00592359,2531.4,2531.3,0.78973]
[1748823668073,0.78975,2531.3,2531.0,0.7898]
[1748823668269,3.21372359,2531.4,2531.1,0.78978]
[1748823668571,20.32074,2531.3,2530.9,0.65392359]
[1748823668761,20.32074,2531.3,2531.0,2.04061]
[1748823668967,19.531,2531.3,2531.1,0.78979]
[1748823669165,20.32073,2531.3,2531.0,2.04059]
[1748823669374,19.531,2531.3,2531.0,1.2508]
[1748823669567,3.21372359,2531.4,2531.0,1.2508]
[1748823669874,20.30375,2531.3,2531.1,0.78979]
[1748823670076,19.514,2531.3,2531.1,0.78979]
[1748823670569,20.30373,2531.3,2531.1,0.78979]
[1748823670762,20.30374,2531.3,2531.0,2.0406]
[1748823670966,19.514,2531.3,2531.1,0.78978]
[1748823671267,20.30374,2531.3,2531.1,0.78978]
[1748823671470,0.00592359,2531.4,2531.3,0.78973]
[1748823671974,0.20342359,2531.4,2531.3,0.78973]
[1748823672269,0.20342359,2531.4,2530.9,2.62850359]
[1748823672270,5.20342359,2531.4,2530.9,0.00592359]
[1748823672475,0.78978,2531.2,2530.9,0.00592359]
[1748823672676,1.381,2531.3,2530.9,0.00592359]
[1748823672878,0.20342359,2531.4,2531.3,0.78973]
[1748823673874,0.20342359,2531.4,2531.3,2.82383]
[1748823674871,0.20342359,2531.4,2531.3,7.82383]
[1748823675066,0.20342359,2531.4,2531.3,2.0341]
[1748823675271,0.20342359,2531.4,2531.3,2.82383]
[1748823675472,0.99312359,2531.4,2531.3,2.0341]
[1748823675674,0.20342359,2531.4,2531.3,2.0341]
[1748823675873,0.99312359,2531.4,2531.3,2.0341]
[1748823676071,0.20342359,2531.4,2531.3,2.0341]
[1748823676377,4.20092359,2531.4,2531.3,2.0341]
[1748823677168,3.41122359,2531.4,2531.3,2.0341]
[1748823677473,0.20342359,2531.4,2531.3,2.82383]
[1748823678280,0.78973,2531.3,2531.2,0.6556]
[1748823679981,0.78982,2531.0,2530.9,0.00592359]
[1748823680374,21.50459059,2531.0,2530.9,0.00592359]
[1748823680686,1.26477059,2531.0,2530.9,0.00592359]
[1748823680874,0.78977,2531.2,2530.9,0.79577359]
[1748823681078,1.26485114,2531.1,2531.0,1.3869]
[1748823681277,22.86222359,2531.4,2531.1,0.78978]
[1748823681479,2.05469323,2531.3,2531.2,1.3353]
[1748823681978,0.78982,2531.0,2530.9,0.00592359]
[1748823682178,3.99762,2531.0,2530.9,0.00592359]
[1748823682379,5.26329443,2531.0,2530.9,0.00592359]
[1748823682977,1.26567443,2531.0,2530.9,0.00592359]
[1748823683177,2.05549443,2531.0,2530.9,0.00592359]
[1748823683482,5.26329443,2531.0,2530.9,0.00592359]
[1748823683684,2.05549443,2531.0,2530.9,0.00592359]
[1748823683979,21.52649443,2531.0,2530.9,0.00592359]
[1748823684183,24.73429443,2531.0,2530.9,0.00592359]
[1748823684386,1.26567443,2531.0,2530.9,0.00592359]
[1748823684585,3.2078,2531.3,2530.9,5.00592359]
[1748823684882,3.99754,2531.3,2531.1,0.78979]
[1748823685083,3.99754,2531.3,2531.2,1.3562]
[1748823685686,3.99753,2531.3,2531.2,1.3562]
[1748823685893,3.2078,2531.3,2531.2,2.14596]
[1748823686078,3.99753,2531.3,2531.2,1.3562]
[1748823686275,0.78982,2531.0,2530.9,0.67752359]
[1748823687289,0.78982,2531.0,2530.9,1.36212359]
[1748823687482,0.78982,2531.0,2530.9,0.00592359]
[1748823687786,0.98732,2531.0,2530.9,0.00592359]
[1748823688580,19.6505,2531.0,2530.9,0.00592359]
[1748823688787,0.1975,2531.0,2530.9,2.10297359]
[1748823689385,0.00592359,2531.4,2531.0,1.9745]
[1748823689586,0.79563359,2531.4,2531.2,0.78974]
[1748823689782,0.79562359,2531.4,2531.3,1.3072]
[1748823689987,0.00592359,2531.4,2531.3,2.09693]
[1748823690184,0.00592359,2531.4,2531.3,7.09693]
[1748823690386,0.00592359,2531.4,2531.2,0.6583]
[1748823690387,0.00592359,2531.4,2531.2,1.92]
[1748823690591,3.2078,2531.3,2531.2,40.8]
[1748823690786,3.99756,2531.3,2531.2,42.1316]
[1748823691390,3.2078,2531.3,2531.2,42.92136]
[1748823691590,3.99753,2531.3,2531.2,1.3316]
[1748823691893,3.99753,2531.3,2531.1,0.78977]
[1748823692188,3.2078,2531.3,2531.2,0.78976]
[1748823692390,3.2078,2531.3,2531.2,2.12136]
[1748823693588,0.99242359,2531.4,2531.3,0.78973]
[1748823693887,0.99242359,2531.4,2531.3,2.06223]
[1748823693888,0.20272359,2531.4,2531.3,2.06223]
[1748823694686,0.20272359,2531.4,2531.3,7.06223]
[1748823694892,2.33353198,2532.2,2532.1,0.78948]
[1748823695088,2.33353198,2532.4,2532.3,0.78942]
[1748823695283,1.26948434,2532.4,2532.3,0.78942]
[1748823695484,2.05887434,2532.4,2532.2,2.06193]
[1748823695691,0.78933,2532.6,2532.2,6.2725]
[1748823695891,1.9774,2532.9,2532.4,3.99717]
[1748823695892,1.26883451,2532.5,2532.4,3.99717]
[1748823696400,0.78932,2532.6,2532.4,4.63067]
[1748823696590,0.78932,2532.6,2532.5,1.262]
[1748823697096,0.00592359,2532.7,2532.5,1.262]
[1748823697292,0.00592359,2532.7,2532.6,0.78932]
[1748823697487,0.00592359,2532.7,2532.5,7.36684]
[1748823697691,0.78932,2532.6,2532.5,6.5775]
[1748823697892,0.78932,2532.6,2532.5,47.3775]
[1748823698195,0.78932,2532.6,2532.5,40.8]
[1748823698396,0.00592359,2532.7,2532.5,40.8]
[1748823698692,0.79521359,2532.7,2532.6,1.262]
[1748823699091,0.00592359,2532.7,2532.6,2.05132]
[1748823699594,0.00592359,2532.7,2532.6,1.262]
[1748823700096,0.00592359,2532.7,2532.6,2.05132]
[1748823700994,0.00592359,2532.7,2532.6,1.262]
[1748823701393,0.79521359,2532.7,2532.6,1.262]
[1748823701793,0.00592359,2532.7,2532.6,2.05132]
[1748823701988,0.00592359,2532.7,2532.6,1.262]
[1748823702196,0.79521359,2532.7,2532.6,1.262]
[1748823702503,0.00592359,2532.7,2532.6,1.262]
[1748823702790,0.00592359,2532.7,2532.5,40.8]
[1748823703098,0.00592359,2532.7,2532.5,42.88514]
[1748823703594,0.79521359,2532.7,2532.5,42.88514]
[1748823703991,0.78932,2532.6,2532.5,42.0958]
[1748823704196,0.00592359,2532.7,2532.5,42.0958]
[1748823704795,0.79522359,2532.7,2532.5,42.0958]
[1748823705199,0.00592359,2532.7,2532.6,0.78932]
[1748823705491,3.2078,2533.4,2532.5,49.0158]
[1748823705693,1.3107,2533.7,2533.3,3.2078]
[1748823705899,0.78893,2533.9,2533.4,1.2569]
[1748823706090,23.8802,2534.1,2533.6,3.2078]
[1748823706290,23.8802,2534.1,2533.7,40.8]
[1748823706494,0.78897,2533.8,2533.7,40.8]
[1748823708195,0.78895,2533.8,2533.7,40.8]
[1748823710205,0.78895,2533.8,2533.7,42.0579]
[1748823711408,0.78894,2533.9,2533.7,42.0579]
[1748823711606,20.09392,2533.9,2533.8,1.2579]
[1748823711906,0.78892,2533.9,2533.8,1.2579]
[1748823713311,0.78887,2534.1,2533.8,1.2579]
[1748823713516,0.00592359,2534.2,2534.1,0.78886]
[1748823713921,0.78886,2534.1,2534.0,2.0258]
[1748823714117,0.00592359,2534.2,2534.0,2.81469]
[1748823714522,0.00592359,2534.2,2533.9,3.8828]
[1748823714523,0.78888,2534.1,2533.9,4.67171]
[1748823714711,0.78889,2534.0,2533.9,6.03421]
[1748823715023,0.78889,2534.0,2533.9,46.83421]
[1748823715322,0.00592359,2534.2,2533.9,46.0453]
[1748823715522,0.00592359,2534.2,2534.1,0.78886]
[1748823715818,0.78865,2534.8,2534.2,1.97207]
[1748823716027,0.78865,2534.8,2534.4,3.2078]
[1748823716326,1.9108,2535.0,2534.7,3.2078]
[1748823716620,0.78863,2534.9,2534.8,1.2581]
[1748823716822,0.7886,2535.0,2534.8,1.2581]
[1748823717019,0.78861,2534.9,2534.8,1.2581]
[1748823718024,1.28242359,2535.1,2534.8,1.2581]
[1748823718218,0.78861,2534.9,2534.8,1.2581]
[1748823719327,0.78858,2535.0,2534.8,1.2581]
[1748823719630,0.78861,2534.9,2534.8,1.2581]
[1748823719820,1.28242359,2535.1,2534.8,1.2581]
[1748823720026,0.00592359,2535.1,2535.0,0.78858]
[1748823720327,0.00592359,2535.1,2535.0,2.14758]
[1748823720530,3.2078,2535.9,2535.2,1.97124]
[1748823720719,0.78831,2535.9,2535.7,0.78834]
[1748823720921,19.239,2536.0,2535.7,0.78835]
[1748823721125,20.6169,2536.0,2535.4,40.8]
[1748823721433,0.78831,2535.9,2535.7,0.78834]
[1748823721927,0.78833,2535.8,2535.7,0.78836]
[1748823722131,1.3779,2535.9,2535.5,1.33082359]
[1748823722424,0.78839,2535.6,2535.5,1.33082359]
[1748823722624,1.3779,2535.9,2535.5,2.11924359]
[1748823722823,0.78839,2535.6,2535.5,1.33082359]
[1748823723225,0.78839,2535.6,2535.5,0.00592359]
[1748823723422,2.04612612,2535.6,2535.5,0.00592359]
[1748823723624,3.42402612,2535.6,2535.5,0.00592359]
[1748823723826,2.63563612,2535.6,2535.5,0.00592359]
[1748823724028,1.25773612,2535.6,2535.5,0.00592359]
[1748823724222,0.78839,2535.6,2535.5,0.00592359]
[1748823724929,3.99619,2535.6,2535.5,0.00592359]
[1748823725434,6.52506854,2535.6,2535.5,0.00592359]
[1748823726227,0.78854,2535.1,2535.0,3.2078]
[1748823726439,0.78864,2534.8,2534.6,0.78868]
[1748823726728,0.78863,2534.9,2534.7,40.8]
[1748823726928,3.9963,2535.3,2534.7,42.77163]
[1748823727130,0.78852,2535.2,2535.0,0.78856]
[1748823727326,0.78854,2535.1,2534.9,5.38659]
[1748823727631,0.78854,2535.1,2535.0,1.3478]
[1748823728029,0.78858,2535.0,2534.9,4.598]
[1748823729629,19.92632359,2535.4,2534.9,4.598]
[1748823729833,0.00592359,2535.4,2535.0,1.3478]
[1748823730023,0.00592359,2535.4,2535.3,0.78848]
[1748823730328,0.00592359,2535.4,2535.3,5.38648]
[1748823730540,3.2078,2535.9,2535.4,0.78844]
[1748823730836,0.78845,2535.5,2535.3,6.68666]
[1748823731225,0.7884,2535.6,2535.3,5.8982]
[1748823731431,0.7884,2535.6,2535.5,0.78841]
[1748823731731,0.00592359,2535.7,2535.6,0.78839]
[1748823731936,0.79430359,2535.7,2535.6,0.78839]
[1748823732134,0.78839,2535.6,2535.5,2.08861]
[1748823732335,0.79430359,2535.7,2535.6,0.78839]
[1748823732635,2.33353198,2536.5,2535.5,9.508]